[Event "Titled Tuesday Blitz July 27 2021"]
[White "Nastore, Pavel-Alexandru"]
[Black "Omk124"]
[WhiteFideId "1255002"]
[WhiteElo "1763"]
[BlackElo "2581"]
[Result "0-1"]
[Round "11"]
[TimeControl "180+1"]
[Date "2021.07.27"]
[WhiteClock "0:00:02"]
[BlackClock "0:01:03"]

1. e4 {[%clk 0:02:55]}  g6 {[%clk 0:02:59]} 2. d4 {[%clk 0:02:53]}  Bg7 {[%clk 0:03:00]} 3. c4 {[%clk 0:02:52]}  c6 {[%clk 0:02:59]} 4. Nc3 {[%clk 0:02:52]}  d6 {[%clk 0:02:59]} 5. f4 {[%clk 0:02:49]}  e5 {[%clk 0:02:57]} 6. fxe5 {[%clk 0:02:46]}  dxe5 {[%clk 0:02:57]} 7. d5 {[%clk 0:02:47]}  Nf6 {[%clk 0:02:47]} 8. Bd3 {[%clk 0:02:46]}  O-O {[%clk 0:02:46]} 9. Nf3 {[%clk 0:02:46]}  Nbd7 {[%clk 0:02:46]} 10. O-O {[%clk 0:02:46]}  Ng4 {[%clk 0:02:44]} 11. Qe2 {[%clk 0:02:44]}  Nc5 {[%clk 0:02:42]} 12. Bc2 {[%clk 0:02:44]}  Qb6 {[%clk 0:02:29]} 13. Kh1 {[%clk 0:02:41]}  Qc7 {[%clk 0:02:25]} 14. b4 {[%clk 0:02:39]}  Nd7 {[%clk 0:02:25]} 15. c5 {[%clk 0:02:36]}  a5 {[%clk 0:02:25]} 16. d6 {[%clk 0:02:25]}  Qd8 {[%clk 0:02:24]} 17. Qc4 {[%clk 0:02:13]}  axb4 {[%clk 0:02:16]} 18. Qxb4 {[%clk 0:02:14]}  Qa5 {[%clk 0:02:14]} 19. Qxa5 {[%clk 0:01:45]}  Rxa5 {[%clk 0:02:15]} 20. Na4 {[%clk 0:01:45]}  Nxc5 {[%clk 0:02:10]} 21. Nxc5 {[%clk 0:01:32]}  Rxc5 {[%clk 0:02:11]} 22. Bb3 {[%clk 0:01:32]}  Be6 {[%clk 0:01:56]} 23. Ba3 {[%clk 0:01:18]}  Rc3 {[%clk 0:01:49]} 24. Bb4 {[%clk 0:01:15]}  Rd3 {[%clk 0:01:48]} 25. Bxe6 {[%clk 0:01:05]}  fxe6 {[%clk 0:01:48]} 26. Ng5 {[%clk 0:01:05]}  Rxf1+ {[%clk 0:01:35]} 27. Rxf1 {[%clk 0:01:04]}  Bf6 {[%clk 0:01:16]} 28. Nxe6 {[%clk 0:00:58]}  Kf7 {[%clk 0:01:17]} 29. Nd8+ {[%clk 0:00:39]}  Ke8 {[%clk 0:01:12]} 30. Nxb7 {[%clk 0:00:39]}  Nf2+ {[%clk 0:01:12]} 31. Kg1 {[%clk 0:00:39]}  Nxe4 {[%clk 0:01:13]} 32. Nc5 {[%clk 0:00:15]}  Nxc5 {[%clk 0:01:07]} 33. Bxc5 {[%clk 0:00:16]}  Bd8 {[%clk 0:01:05]} 34. a4 {[%clk 0:00:12]}  Rd5 {[%clk 0:01:05]} 35. Ba3 {[%clk 0:00:09]}  e4 {[%clk 0:01:04]} 36. Re1 {[%clk 0:00:06]}  Bb6+ {[%clk 0:01:04]} 37. Kf1 {[%clk 0:00:06]}  e3 {[%clk 0:01:04]} 38. Bb4 {[%clk 0:00:03]}  Rf5+ {[%clk 0:01:04]} 39. Ke2 {[%clk 0:00:03]}  Rf2+ {[%clk 0:01:04]} 40. Kd3 {[%clk 0:00:04]}  Rxg2 {[%clk 0:01:04]} 41. a5 {[%clk 0:00:04]}  Ba7 {[%clk 0:01:04]} 42. Kc4 {[%clk 0:00:03]}  Kd7 {[%clk 0:01:04]} 43. a6 {[%clk 0:00:03]}  Ra2 {[%clk 0:01:03]} 44. Bc5 {[%clk 0:00:02]}  Rc2+ {[%clk 0:01:02]} 45. Kd3 {[%clk 0:00:02]}  Rxc5 {[%clk 0:01:03]} 46. Rxe3 {[%clk 0:00:02]}  Rd5+ {[%clk 0:01:03]} 0-1


[Site "https://www.chess.com"]

[Event "Titled Tuesday Blitz July 27 2021"]
[White "Obolentseva, Alexandra"]
[Black "Havanecz, Bianka"]
[WhiteFideId "24153648"]
[BlackFideId "704814"]
[WhiteElo "2113"]
[BlackElo "2352"]
[Result "1-0"]
[Round "11"]
[TimeControl "180+1"]
[Date "2021.07.27"]
[WhiteClock "0:00:18"]
[BlackClock "0:00:01"]

1. d4 {[%clk 0:03:00]}  d5 {[%clk 0:03:00]} 2. c4 {[%clk 0:03:00]}  e6 {[%clk 0:03:00]} 3. Nc3 {[%clk 0:02:59]}  Nf6 {[%clk 0:03:00]} 4. cxd5 {[%clk 0:02:59]}  exd5 {[%clk 0:03:01]} 5. Bg5 {[%clk 0:02:57]}  Be7 {[%clk 0:03:02]} 6. e3 {[%clk 0:02:56]}  c6 {[%clk 0:03:02]} 7. Bd3 {[%clk 0:02:56]}  Nbd7 {[%clk 0:03:03]} 8. Nf3 {[%clk 0:02:53]}  h6 {[%clk 0:03:03]} 9. Bh4 {[%clk 0:02:53]}  O-O {[%clk 0:03:03]} 10. O-O {[%clk 0:02:52]}  Re8 {[%clk 0:03:02]} 11. Qc2 {[%clk 0:02:51]}  Nf8 {[%clk 0:02:58]} 12. Rae1 {[%clk 0:02:47]}  a5 {[%clk 0:02:25]} 13. Ne5 {[%clk 0:02:43]}  N6d7 {[%clk 0:02:11]} 14. Bxe7 {[%clk 0:02:41]}  Qxe7 {[%clk 0:02:08]} 15. f4 {[%clk 0:02:41]}  Nf6 {[%clk 0:02:04]} 16. Rf3 {[%clk 0:02:33]}  Bd7 {[%clk 0:01:53]} 17. Kh1 {[%clk 0:02:14]}  Rec8 {[%clk 0:01:49]} 18. Bf5 {[%clk 0:01:54]}  c5 {[%clk 0:01:44]} 19. Bxd7 {[%clk 0:01:46]}  N8xd7 {[%clk 0:01:44]} 20. Qf5 {[%clk 0:01:44]}  Qe6 {[%clk 0:01:31]} 21. Qd3 {[%clk 0:01:32]}  c4 {[%clk 0:01:19]} 22. Qf1 {[%clk 0:01:28]}  Rab8 {[%clk 0:01:15]} 23. Rg3 {[%clk 0:01:13]}  b5 {[%clk 0:01:06]} 24. e4 {[%clk 0:00:58]}  dxe4 {[%clk 0:00:47]} 25. Nxe4 {[%clk 0:00:59]}  Nxe4 {[%clk 0:00:42]} 26. Rxe4 {[%clk 0:01:00]}  Nf6 {[%clk 0:00:38]} 27. Ree3 {[%clk 0:00:59]}  Qd5 {[%clk 0:00:31]} 28. Qd1 {[%clk 0:00:46]}  Rd8 {[%clk 0:00:26]} 29. Re1 {[%clk 0:00:42]}  Rb6 {[%clk 0:00:23]} 30. Ng4 {[%clk 0:00:39]}  Kf8 {[%clk 0:00:18]} 31. Nxf6 {[%clk 0:00:38]}  Rxf6 {[%clk 0:00:19]} 32. Qg4 {[%clk 0:00:38]}  Rg6 {[%clk 0:00:19]} 33. Qe2 {[%clk 0:00:38]}  Qxd4 {[%clk 0:00:15]} 34. Qe7+ {[%clk 0:00:37]}  Kg8 {[%clk 0:00:16]} 35. Rxg6 {[%clk 0:00:38]}  fxg6 {[%clk 0:00:16]} 36. Qe6+ {[%clk 0:00:39]}  Kh7 {[%clk 0:00:16]} 37. f5 {[%clk 0:00:36]}  Qf6 {[%clk 0:00:10]} 38. fxg6+ {[%clk 0:00:35]}  Kxg6 {[%clk 0:00:11]} 39. Qe4+ {[%clk 0:00:35]}  Kf7 {[%clk 0:00:11]} 40. Qb7+ {[%clk 0:00:35]}  Kg8 {[%clk 0:00:11]} 41. Qxb5 {[%clk 0:00:35]}  Rc8 {[%clk 0:00:08]} 42. Qd5+ {[%clk 0:00:34]}  Kh8 {[%clk 0:00:09]} 43. Qxa5 {[%clk 0:00:33]}  Qxb2 {[%clk 0:00:08]} 44. Qf5 {[%clk 0:00:32]}  Qb8 {[%clk 0:00:06]} 45. h3 {[%clk 0:00:28]}  c3 {[%clk 0:00:06]} 46. Qc2 {[%clk 0:00:28]}  Qg3 {[%clk 0:00:06]} 47. Rd1 {[%clk 0:00:27]}  Re8 {[%clk 0:00:05]} 48. a4 {[%clk 0:00:18]}  Re1+ {[%clk 0:00:05]} 49. Rxe1 {[%clk 0:00:18]}  Qxe1+ {[%clk 0:00:06]} 50. Kh2 {[%clk 0:00:19]}  Qd2 {[%clk 0:00:05]} 51. Qf5 {[%clk 0:00:18]}  Qd6+ {[%clk 0:00:03]} 52. g3 {[%clk 0:00:17]}  Qd2+ {[%clk 0:00:03]} 53. Kh1 {[%clk 0:00:17]}  Qd1+ {[%clk 0:00:01]} 54. Kh2 {[%clk 0:00:18]} 1-0


[Site "https://www.chess.com"]

[Event "Titled Tuesday Blitz July 27 2021"]
[White "Ovchinnikov, Vsevolod"]
[Black "Weetik, Vjacheslav"]
[WhiteFideId "24176842"]
[BlackFideId "4153472"]
[WhiteElo "2376"]
[BlackElo "2469"]
[Result "1-0"]
[Round "11"]
[TimeControl "180+1"]
[Date "2021.07.27"]
[WhiteClock "0:00:06"]
[BlackClock "0:00:06"]

1. d4 {[%clk 0:03:00]}  d5 {[%clk 0:02:59]} 2. c4 {[%clk 0:03:01]}  e6 {[%clk 0:02:59]} 3. Nf3 {[%clk 0:03:01]}  c6 {[%clk 0:02:59]} 4. Qc2 {[%clk 0:02:58]}  f5 {[%clk 0:02:56]} 5. g3 {[%clk 0:02:58]}  Bd6 {[%clk 0:02:54]} 6. Bg2 {[%clk 0:02:58]}  Nf6 {[%clk 0:02:54]} 7. O-O {[%clk 0:02:59]}  O-O {[%clk 0:02:54]} 8. Nc3 {[%clk 0:03:00]}  Qe8 {[%clk 0:02:41]} 9. Rb1 {[%clk 0:02:53]}  a5 {[%clk 0:02:33]} 10. a3 {[%clk 0:02:53]}  Ne4 {[%clk 0:02:29]} 11. b4 {[%clk 0:02:53]}  axb4 {[%clk 0:02:29]} 12. axb4 {[%clk 0:02:53]}  Na6 {[%clk 0:02:25]} 13. c5 {[%clk 0:02:48]}  Be7 {[%clk 0:02:23]} 14. Bf4 {[%clk 0:02:36]}  Bd7 {[%clk 0:02:12]} 15. Nxe4 {[%clk 0:02:20]}  fxe4 {[%clk 0:02:05]} 16. Ne5 {[%clk 0:02:09]}  Nc7 {[%clk 0:01:46]} 17. Nxc6 {[%clk 0:01:58]}  Bxc6 {[%clk 0:01:45]} 18. Bxc7 {[%clk 0:01:57]}  Bb5 {[%clk 0:01:37]} 19. f3 {[%clk 0:01:45]}  e3 {[%clk 0:01:21]} 20. f4 {[%clk 0:01:10]}  Qh5 {[%clk 0:01:07]} 21. Rf3 {[%clk 0:01:04]}  Ra3 {[%clk 0:00:57]} 22. Qc1 {[%clk 0:00:45]}  Bxe2 {[%clk 0:00:43]} 23. Rxe3 {[%clk 0:00:37]}  Ra2 {[%clk 0:00:31]} 24. Ra1 {[%clk 0:00:30]}  Rfa8 {[%clk 0:00:19]} 25. Ba5 {[%clk 0:00:22]}  Rxa1 {[%clk 0:00:18]} 26. Qxa1 {[%clk 0:00:23]}  Bf6 {[%clk 0:00:16]} 27. h3 {[%clk 0:00:14]}  Bc4 {[%clk 0:00:14]} 28. Kh2 {[%clk 0:00:09]}  Qf5 {[%clk 0:00:13]} 29. Qc3 {[%clk 0:00:07]}  h5 {[%clk 0:00:12]} 30. h4 {[%clk 0:00:06]}  Rf8 {[%clk 0:00:10]} 31. Bh3 {[%clk 0:00:06]}  Qg6 {[%clk 0:00:09]} 32. Bxe6+ {[%clk 0:00:07]}  Kh8 {[%clk 0:00:09]} 33. Bc7 {[%clk 0:00:05]}  Ra8 {[%clk 0:00:06]} 34. Ba5 {[%clk 0:00:04]}  Qh6 {[%clk 0:00:04]} 35. Bh3 {[%clk 0:00:03]}  Bxh4 {[%clk 0:00:04]} 36. gxh4 {[%clk 0:00:04]}  Qxf4+ {[%clk 0:00:04]} 37. Rg3 {[%clk 0:00:04]}  Re8 {[%clk 0:00:05]} 38. Bg2 {[%clk 0:00:02]}  Qxh4+ {[%clk 0:00:04]} 39. Rh3 {[%clk 0:00:02]}  Qf4+ {[%clk 0:00:04]} 40. Qg3 {[%clk 0:00:02]}  Qxg3+ {[%clk 0:00:03]} 41. Rxg3 {[%clk 0:00:03]}  Rf8 {[%clk 0:00:02]} 42. Bc7 {[%clk 0:00:03]}  Rf5 {[%clk 0:00:02]} 43. Be5 {[%clk 0:00:03]}  Kh7 {[%clk 0:00:02]} 44. Rxg7+ {[%clk 0:00:02]}  Kh6 {[%clk 0:00:03]} 45. Rxb7 {[%clk 0:00:03]}  Kg5 {[%clk 0:00:03]} 46. Kg3 {[%clk 0:00:03]}  h4+ {[%clk 0:00:03]} 47. Kh3 {[%clk 0:00:04]}  Be2 {[%clk 0:00:04]} 48. Rg7+ {[%clk 0:00:03]}  Kh5 {[%clk 0:00:04]} 49. Kh2 {[%clk 0:00:02]}  h3 {[%clk 0:00:04]} 50. Bxh3 {[%clk 0:00:02]}  Rf2+ {[%clk 0:00:05]} 51. Kg3 {[%clk 0:00:03]}  Rf3+ {[%clk 0:00:05]} 52. Kg2 {[%clk 0:00:03]}  Rd3 {[%clk 0:00:05]} 53. Be6 {[%clk 0:00:03]}  Bf3+ {[%clk 0:00:05]} 54. Kf2 {[%clk 0:00:03]}  Be4 {[%clk 0:00:06]} 55. Bf7+ {[%clk 0:00:03]}  Kh6 {[%clk 0:00:06]} 56. Rg3 {[%clk 0:00:04]}  Rd2+ {[%clk 0:00:06]} 57. Ke3 {[%clk 0:00:04]}  Rd3+ {[%clk 0:00:07]} 58. Kf4 {[%clk 0:00:04]}  Rd1 {[%clk 0:00:07]} 59. Kg4 {[%clk 0:00:04]}  Kh7 {[%clk 0:00:06]} 60. Be6 {[%clk 0:00:05]}  Kg6 {[%clk 0:00:06]} 61. Kh4+ {[%clk 0:00:04]}  Kh6 {[%clk 0:00:06]} 62. Bf4+ {[%clk 0:00:04]}  Kh7 {[%clk 0:00:06]} 63. Kg5 {[%clk 0:00:05]}  Kg7 {[%clk 0:00:06]} 64. Bf5 {[%clk 0:00:05]}  Bh1 {[%clk 0:00:04]} 65. Be5+ {[%clk 0:00:05]}  Kf7 {[%clk 0:00:05]} 66. b5 {[%clk 0:00:05]}  Rb1 {[%clk 0:00:05]} 67. b6 {[%clk 0:00:06]}  Ke7 {[%clk 0:00:06]} 68. Bxb1 {[%clk 0:00:06]} 1-0


[Site "https://www.chess.com"]

[Event "Titled Tuesday Blitz July 27 2021"]
[White "Perez Gormaz, Matias"]
[Black "Ulko, Jaroslav"]
[WhiteFideId "3406342"]
[BlackFideId "4116658"]
[WhiteElo "2414"]
[BlackElo "2304"]
[Result "1-0"]
[Round "11"]
[TimeControl "180+1"]
[Date "2021.07.27"]
[WhiteClock "0:00:25"]
[BlackClock "0:00:04"]

1. e4 {[%clk 0:03:00]}  c5 {[%clk 0:02:54]} 2. Nf3 {[%clk 0:03:00]}  e6 {[%clk 0:02:54]} 3. g3 {[%clk 0:03:00]}  d5 {[%clk 0:02:53]} 4. exd5 {[%clk 0:03:00]}  exd5 {[%clk 0:02:53]} 5. d4 {[%clk 0:03:01]}  Nf6 {[%clk 0:02:53]} 6. Bg2 {[%clk 0:03:00]}  Nc6 {[%clk 0:02:54]} 7. O-O {[%clk 0:03:01]}  Bd6 {[%clk 0:02:54]} 8. dxc5 {[%clk 0:02:59]}  Bxc5 {[%clk 0:02:54]} 9. Nc3 {[%clk 0:02:59]}  O-O {[%clk 0:02:53]} 10. a3 {[%clk 0:02:53]}  h6 {[%clk 0:02:52]} 11. b4 {[%clk 0:02:53]}  Be7 {[%clk 0:02:45]} 12. Bb2 {[%clk 0:02:52]}  Bg4 {[%clk 0:02:42]} 13. Qd3 {[%clk 0:02:50]}  Rc8 {[%clk 0:02:41]} 14. Rfe1 {[%clk 0:02:41]}  a6 {[%clk 0:02:18]} 15. Rad1 {[%clk 0:02:39]}  d4 {[%clk 0:02:14]} 16. Ne2 {[%clk 0:02:31]}  Qd7 {[%clk 0:01:46]} 17. Nexd4 {[%clk 0:02:22]}  Rfd8 {[%clk 0:01:34]} 18. Nxc6 {[%clk 0:02:10]}  Qxc6 {[%clk 0:01:32]} 19. Nd4 {[%clk 0:01:49]}  Qd7 {[%clk 0:01:23]} 20. Rd2 {[%clk 0:01:45]}  Nh7 {[%clk 0:00:58]} 21. Qe4 {[%clk 0:01:32]}  Bf6 {[%clk 0:00:53]} 22. Qxb7 {[%clk 0:01:31]}  Rc7 {[%clk 0:00:47]} 23. Qxa6 {[%clk 0:01:23]}  Ng5 {[%clk 0:00:47]} 24. h4 {[%clk 0:01:16]}  Ne6 {[%clk 0:00:42]} 25. c3 {[%clk 0:01:04]}  Nxd4 {[%clk 0:00:35]} 26. cxd4 {[%clk 0:01:03]}  Rdc8 {[%clk 0:00:25]} 27. Qd3 {[%clk 0:01:01]}  Bf5 {[%clk 0:00:24]} 28. Be4 {[%clk 0:01:01]}  Re8 {[%clk 0:00:23]} 29. Rde2 {[%clk 0:01:00]}  Rxe4 {[%clk 0:00:23]} 30. Rxe4 {[%clk 0:00:59]}  Kh7 {[%clk 0:00:23]} 31. Qe2 {[%clk 0:00:55]}  Qd5 {[%clk 0:00:21]} 32. Rf4 {[%clk 0:00:51]}  Rc2 {[%clk 0:00:18]} 33. Qf3 {[%clk 0:00:37]}  Qxf3 {[%clk 0:00:08]} 34. Rxf3 {[%clk 0:00:37]}  Bg4 {[%clk 0:00:07]} 35. Rf4 {[%clk 0:00:37]}  h5 {[%clk 0:00:07]} 36. Ba1 {[%clk 0:00:35]}  Rd2 {[%clk 0:00:07]} 37. b5 {[%clk 0:00:34]}  Bd8 {[%clk 0:00:06]} 38. a4 {[%clk 0:00:30]}  Bb6 {[%clk 0:00:06]} 39. Rxf7 {[%clk 0:00:29]}  Kg6 {[%clk 0:00:05]} 40. Rb7 {[%clk 0:00:27]}  Ba5 {[%clk 0:00:05]} 41. Ra7 {[%clk 0:00:27]}  Bb4 {[%clk 0:00:05]} 42. Rb1 {[%clk 0:00:26]}  Bd6 {[%clk 0:00:04]} 43. Ra6 {[%clk 0:00:25]} 1-0


[Site "https://www.chess.com"]

[Event "Titled Tuesday Blitz July 27 2021"]
[White "Pourkashiyan, Atousa"]
[Black "Yaran, Siar"]
[WhiteFideId "12502014"]
[BlackFideId "6323006"]
[WhiteElo "2285"]
[BlackElo "1977"]
[Result "1-0"]
[Round "11"]
[TimeControl "180+1"]
[Date "2021.07.27"]
[WhiteClock "0:00:15"]
[BlackClock "0:00:20"]

1. e4 {[%clk 0:03:00]}  e5 {[%clk 0:02:59]} 2. Nf3 {[%clk 0:03:00]}  Nc6 {[%clk 0:03:00]} 3. Bb5 {[%clk 0:03:00]}  a6 {[%clk 0:03:01]} 4. Ba4 {[%clk 0:02:56]}  Nf6 {[%clk 0:03:01]} 5. O-O {[%clk 0:02:55]}  Be7 {[%clk 0:03:01]} 6. Re1 {[%clk 0:02:54]}  b5 {[%clk 0:03:01]} 7. Bb3 {[%clk 0:02:54]}  d6 {[%clk 0:03:01]} 8. c3 {[%clk 0:02:54]}  O-O {[%clk 0:03:01]} 9. h3 {[%clk 0:02:54]}  Na5 {[%clk 0:03:02]} 10. Bc2 {[%clk 0:02:54]}  c5 {[%clk 0:03:02]} 11. d4 {[%clk 0:02:55]}  Qc7 {[%clk 0:03:03]} 12. d5 {[%clk 0:02:50]}  Nb7 {[%clk 0:03:02]} 13. Nbd2 {[%clk 0:02:50]}  Nd8 {[%clk 0:03:01]} 14. Nf1 {[%clk 0:02:47]}  Ne8 {[%clk 0:03:00]} 15. Ne3 {[%clk 0:02:36]}  g6 {[%clk 0:03:00]} 16. c4 {[%clk 0:02:36]}  Rb8 {[%clk 0:02:53]} 17. b3 {[%clk 0:02:31]}  b4 {[%clk 0:02:52]} 18. Nh2 {[%clk 0:02:25]}  Ng7 {[%clk 0:02:50]} 19. Nhg4 {[%clk 0:02:20]}  f6 {[%clk 0:02:44]} 20. Nh6+ {[%clk 0:02:16]}  Kh8 {[%clk 0:02:44]} 21. Rf1 {[%clk 0:02:16]}  Nh5 {[%clk 0:02:25]} 22. Nef5 {[%clk 0:01:48]}  Nf7 {[%clk 0:02:16]} 23. Nxf7+ {[%clk 0:01:19]}  Rxf7 {[%clk 0:02:15]} 24. Nh6 {[%clk 0:01:19]}  Rf8 {[%clk 0:02:15]} 25. Qf3 {[%clk 0:01:08]}  Bd7 {[%clk 0:02:06]} 26. g4 {[%clk 0:01:07]}  Ng7 {[%clk 0:01:48]} 27. Kh2 {[%clk 0:01:07]}  Rbe8 {[%clk 0:01:37]} 28. Bd2 {[%clk 0:01:06]}  Qc8 {[%clk 0:01:36]} 29. Rg1 {[%clk 0:01:06]}  Bd8 {[%clk 0:01:19]} 30. Rg3 {[%clk 0:01:05]}  a5 {[%clk 0:01:16]} 31. Rag1 {[%clk 0:01:05]}  Qa6 {[%clk 0:01:12]} 32. Qe2 {[%clk 0:00:55]}  a4 {[%clk 0:01:07]} 33. f4 {[%clk 0:00:41]}  exf4 {[%clk 0:01:06]} 34. Bxf4 {[%clk 0:00:40]}  a3 {[%clk 0:00:58]} 35. Qd3 {[%clk 0:00:38]}  Be7 {[%clk 0:00:37]} 36. R3g2 {[%clk 0:00:38]}  Qb6 {[%clk 0:00:37]} 37. Rf2 {[%clk 0:00:38]}  Qd8 {[%clk 0:00:38]} 38. Rgf1 {[%clk 0:00:38]}  Bc8 {[%clk 0:00:33]} 39. Qg3 {[%clk 0:00:38]}  Bb7 {[%clk 0:00:24]} 40. Rg1 {[%clk 0:00:38]}  Bc8 {[%clk 0:00:24]} 41. h4 {[%clk 0:00:38]}  Bb7 {[%clk 0:00:20]} 42. Kh1 {[%clk 0:00:38]}  Bc8 {[%clk 0:00:20]} 43. Rh2 {[%clk 0:00:38]}  Bb7 {[%clk 0:00:21]} 44. Qd3 {[%clk 0:00:35]}  Bc8 {[%clk 0:00:21]} 45. h5 {[%clk 0:00:35]}  g5 {[%clk 0:00:18]} 46. e5 {[%clk 0:00:36]}  f5 {[%clk 0:00:19]} 47. Bg3 {[%clk 0:00:27]}  dxe5 {[%clk 0:00:17]} 48. Bxe5 {[%clk 0:00:27]}  Bf6 {[%clk 0:00:18]} 49. Bxf6 {[%clk 0:00:20]}  Qxf6 {[%clk 0:00:19]} 50. Nxf5 {[%clk 0:00:21]}  Nxf5 {[%clk 0:00:18]} 51. gxf5 {[%clk 0:00:22]}  Bxf5 {[%clk 0:00:18]} 52. Qxf5 {[%clk 0:00:21]}  Qxf5 {[%clk 0:00:19]} 53. Bxf5 {[%clk 0:00:21]}  Rxf5 {[%clk 0:00:20]} 54. Rd2 {[%clk 0:00:18]}  Kg7 {[%clk 0:00:20]} 55. d6 {[%clk 0:00:18]}  Rd8 {[%clk 0:00:20]} 56. d7 {[%clk 0:00:18]}  Kf7 {[%clk 0:00:20]} 57. Re1 {[%clk 0:00:18]}  Rf6 {[%clk 0:00:20]} 58. Re5 {[%clk 0:00:17]}  h6 {[%clk 0:00:18]} 59. Rxc5 {[%clk 0:00:17]}  Ke7 {[%clk 0:00:19]} 60. Re5+ {[%clk 0:00:17]}  Re6 {[%clk 0:00:19]} 61. Rb5 {[%clk 0:00:14]}  Rxd7 {[%clk 0:00:17]} 62. Rxd7+ {[%clk 0:00:14]}  Kxd7 {[%clk 0:00:18]} 63. Rxb4 {[%clk 0:00:14]}  Re2 {[%clk 0:00:19]} 64. Rb7+ {[%clk 0:00:14]}  Kc6 {[%clk 0:00:19]} 65. Rh7 {[%clk 0:00:14]}  Rxa2 {[%clk 0:00:19]} 66. Rxh6+ {[%clk 0:00:15]}  Kc5 {[%clk 0:00:20]} 67. Ra6 {[%clk 0:00:15]}  Kb4 {[%clk 0:00:20]} 68. h6 {[%clk 0:00:15]} 1-0


[Site "https://www.chess.com"]

[Event "Titled Tuesday Blitz July 27 2021"]
[White "Provotorov, Ivan"]
[Black "Kretov, Evgenij"]
[WhiteFideId "4154657"]
[BlackFideId "4167821"]
[WhiteElo "2270"]
[BlackElo "2400"]
[Result "0-1"]
[Round "11"]
[TimeControl "180+1"]
[Date "2021.07.27"]
[WhiteClock "0:00:01"]
[BlackClock "0:00:19"]

1. c4 {[%clk 0:03:00]}  Nf6 {[%clk 0:02:58]} 2. Nc3 {[%clk 0:03:01]}  c5 {[%clk 0:02:59]} 3. Nf3 {[%clk 0:03:00]}  b6 {[%clk 0:02:59]} 4. e3 {[%clk 0:03:00]}  e6 {[%clk 0:02:58]} 5. d4 {[%clk 0:03:01]}  cxd4 {[%clk 0:02:57]} 6. exd4 {[%clk 0:03:02]}  d5 {[%clk 0:02:57]} 7. cxd5 {[%clk 0:03:02]}  Nxd5 {[%clk 0:02:58]} 8. Ne5 {[%clk 0:03:03]}  Nxc3 {[%clk 0:02:44]} 9. bxc3 {[%clk 0:02:47]}  Qd5 {[%clk 0:02:08]} 10. Be2 {[%clk 0:02:20]}  Qa5 {[%clk 0:01:21]} 11. O-O {[%clk 0:02:01]}  Bb7 {[%clk 0:01:20]} 12. Bf3 {[%clk 0:01:58]}  Qa6 {[%clk 0:01:16]} 13. Be2 {[%clk 0:01:37]}  Qa5 {[%clk 0:01:06]} 14. a4 {[%clk 0:01:22]}  a6 {[%clk 0:00:59]} 15. Bf3 {[%clk 0:01:20]}  Ra7 {[%clk 0:00:55]} 16. c4 {[%clk 0:00:43]}  Bb4 {[%clk 0:00:49]} 17. Bf4 {[%clk 0:00:34]}  O-O {[%clk 0:00:45]} 18. Bxb7 {[%clk 0:00:31]}  Rxb7 {[%clk 0:00:45]} 19. Qb3 {[%clk 0:00:30]}  Bd2 {[%clk 0:00:35]} 20. Bxd2 {[%clk 0:00:23]}  Qxd2 {[%clk 0:00:35]} 21. Rfd1 {[%clk 0:00:24]}  Qf4 {[%clk 0:00:32]} 22. a5 {[%clk 0:00:24]}  b5 {[%clk 0:00:28]} 23. Rab1 {[%clk 0:00:21]}  Rd8 {[%clk 0:00:27]} 24. Qc3 {[%clk 0:00:20]}  Rc8 {[%clk 0:00:25]} 25. c5 {[%clk 0:00:14]}  Nd7 {[%clk 0:00:23]} 26. c6 {[%clk 0:00:12]}  Nb8 {[%clk 0:00:20]} 27. Rbc1 {[%clk 0:00:06]}  Rbc7 {[%clk 0:00:20]} 28. d5 {[%clk 0:00:05]}  exd5 {[%clk 0:00:20]} 29. Rxd5 {[%clk 0:00:06]}  f6 {[%clk 0:00:20]} 30. Qb3 {[%clk 0:00:01]}  Kh8 {[%clk 0:00:19]} 0-1


[Site "https://www.chess.com"]

[Event "Titled Tuesday Blitz July 27 2021"]
[White "Quparadze, Giga"]
[Black "Zubov, Alexander"]
[WhiteFideId "13602250"]
[BlackFideId "14109409"]
[WhiteElo "2658"]
[BlackElo "2740"]
[Result "1-0"]
[Round "11"]
[TimeControl "180+1"]
[Date "2021.07.27"]
[WhiteClock "0:00:37"]
[BlackClock "0:00:21"]

1. e4 {[%clk 0:03:00]}  g6 {[%clk 0:02:58]} 2. d4 {[%clk 0:03:00]}  Bg7 {[%clk 0:02:59]} 3. Nc3 {[%clk 0:03:00]}  d6 {[%clk 0:02:59]} 4. Bg5 {[%clk 0:03:00]}  Nc6 {[%clk 0:02:57]} 5. Nge2 {[%clk 0:02:56]}  Nf6 {[%clk 0:02:51]} 6. Qd2 {[%clk 0:02:53]}  h6 {[%clk 0:02:51]} 7. Bh4 {[%clk 0:02:53]}  g5 {[%clk 0:02:51]} 8. Bg3 {[%clk 0:02:52]}  Nh5 {[%clk 0:02:52]} 9. O-O-O {[%clk 0:02:49]}  e6 {[%clk 0:02:46]} 10. Qe3 {[%clk 0:02:47]}  Qe7 {[%clk 0:02:44]} 11. h4 {[%clk 0:02:34]}  g4 {[%clk 0:02:42]} 12. Kb1 {[%clk 0:02:16]}  a6 {[%clk 0:02:33]} 13. f3 {[%clk 0:02:15]}  gxf3 {[%clk 0:02:32]} 14. gxf3 {[%clk 0:02:14]}  Bd7 {[%clk 0:02:25]} 15. Bf2 {[%clk 0:02:13]}  b5 {[%clk 0:02:00]} 16. Ng3 {[%clk 0:01:50]}  Nxg3 {[%clk 0:01:58]} 17. Bxg3 {[%clk 0:01:50]}  b4 {[%clk 0:01:57]} 18. Ne2 {[%clk 0:01:51]}  e5 {[%clk 0:01:49]} 19. d5 {[%clk 0:01:48]}  Na5 {[%clk 0:01:48]} 20. Nc1 {[%clk 0:01:41]}  f5 {[%clk 0:01:42]} 21. Be1 {[%clk 0:01:41]}  Rb8 {[%clk 0:01:22]} 22. Qa7 {[%clk 0:01:38]}  Qd8 {[%clk 0:01:22]} 23. Qxa6 {[%clk 0:01:33]}  Ra8 {[%clk 0:01:20]} 24. Qe2 {[%clk 0:01:33]}  Qb8 {[%clk 0:01:17]} 25. Rg1 {[%clk 0:01:32]}  O-O {[%clk 0:01:16]} 26. Qd2 {[%clk 0:01:17]}  f4 {[%clk 0:01:05]} 27. Qxb4 {[%clk 0:01:17]}  Qa7 {[%clk 0:01:04]} 28. Rg2 {[%clk 0:01:16]}  Nb7 {[%clk 0:01:01]} 29. Bf2 {[%clk 0:01:13]}  Nc5 {[%clk 0:01:01]} 30. Bxc5 {[%clk 0:01:13]}  dxc5 {[%clk 0:01:02]} 31. Qc3 {[%clk 0:01:13]}  Rfe8 {[%clk 0:00:46]} 32. Bc4 {[%clk 0:01:12]}  Kh7 {[%clk 0:00:45]} 33. Rdg1 {[%clk 0:01:11]}  Bf6 {[%clk 0:00:37]} 34. Rg6 {[%clk 0:01:11]}  Bg5 {[%clk 0:00:33]} 35. R6xg5 {[%clk 0:01:06]}  hxg5 {[%clk 0:00:34]} 36. Rxg5 {[%clk 0:01:07]}  Qb6 {[%clk 0:00:34]} 37. Nd3 {[%clk 0:01:05]}  Bb5 {[%clk 0:00:32]} 38. Nxe5 {[%clk 0:01:03]}  Bxc4 {[%clk 0:00:30]} 39. Nxc4 {[%clk 0:01:02]}  Qh6 {[%clk 0:00:31]} 40. a3 {[%clk 0:00:59]}  Rg8 {[%clk 0:00:31]} 41. Qe5 {[%clk 0:00:59]}  Rxg5 {[%clk 0:00:30]} 42. hxg5 {[%clk 0:00:59]}  Qh1+ {[%clk 0:00:27]} 43. Ka2 {[%clk 0:00:59]}  Qxf3 {[%clk 0:00:26]} 44. Qf5+ {[%clk 0:00:58]}  Kh8 {[%clk 0:00:27]} 45. Ne5 {[%clk 0:00:58]}  Qh5 {[%clk 0:00:26]} 46. Qf6+ {[%clk 0:00:56]}  Kg8 {[%clk 0:00:24]} 47. Qe6+ {[%clk 0:00:55]}  Kg7 {[%clk 0:00:23]} 48. Qf6+ {[%clk 0:00:53]}  Kg8 {[%clk 0:00:23]} 49. Qxf4 {[%clk 0:00:53]}  Rf8 {[%clk 0:00:23]} 50. Qe3 {[%clk 0:00:53]}  Qh2 {[%clk 0:00:22]} 51. Nd7 {[%clk 0:00:48]}  Rf2 {[%clk 0:00:22]} 52. Qxc5 {[%clk 0:00:44]}  Rxc2 {[%clk 0:00:20]} 53. Qf8+ {[%clk 0:00:41]}  Kh7 {[%clk 0:00:21]} 54. Nf6+ {[%clk 0:00:37]}  Kg6 {[%clk 0:00:21]} 55. Qg8# {[%clk 0:00:37]} 1-0


[Site "https://www.chess.com"]